[Event "*** Titled Tuesday Blitz"]
[Site "Chess.com"]
[Date "2021.02.09"]
[Round "11"]
[White "GigaQuparadze"]
[Black "exoticprincess"]
[Result "1/2-1/2"]
[WhiteElo "2915"]
[BlackElo "2866"]
[TimeControl "180+1"]
[EndTime "12:08:02 PST"]
[Termination "Game drawn by repetition"]

1. e4 {[%clk 0:03:00.9]} 1... e5 {[%clk 0:02:57.1]} 2. Nf3 {[%clk 0:03:00.6]}
2... Nf6 {[%clk 0:02:56.9]} 3. Nc3 {[%clk 0:02:55.3]} 3... d6 {[%clk 0:02:55]}
4. d4 {[%clk 0:02:54.9]} 4... Nbd7 {[%clk 0:02:55.4]} 5. Bc4 {[%clk 0:02:54.4]}
5... Be7 {[%clk 0:02:55.9]} 6. O-O {[%clk 0:02:52.6]} 6... O-O {[%clk
0:02:56.3]} 7. Re1 {[%clk 0:02:52.8]} 7... h6 {[%clk 0:02:55]} 8. h3 {[%clk
0:02:52.3]} 8... Re8 {[%clk 0:02:54.8]} 9. a4 {[%clk 0:02:49.7]} 9... Bf8 {[%clk
0:02:54.1]} 10. b3 {[%clk 0:02:47.6]} 10... a5 {[%clk 0:02:51.2]} 11. Bb2 {[%clk
0:02:47.3]} 11... c6 {[%clk 0:02:49.3]} 12. d5 {[%clk 0:02:44.7]} 12... Nc5
{[%clk 0:02:44.7]} 13. Ba3 {[%clk 0:02:40.7]} 13... Qb6 {[%clk 0:02:38.7]} 14.
Qe2 {[%clk 0:02:34.4]} 14... Bd7 {[%clk 0:02:30.4]} 15. Rad1 {[%clk 0:02:23.7]}
15... Rec8 {[%clk 0:02:20.4]} 16. Qe3 {[%clk 0:02:23.1]} 16... Qc7 {[%clk
0:02:01.1]} 17. Bxc5 {[%clk 0:02:16.2]} 17... dxc5 {[%clk 0:01:59.7]} 18. dxc6
{[%clk 0:02:16.6]} 18... bxc6 {[%clk 0:01:58.8]} 19. Na2 {[%clk 0:02:12]} 19...
Be8 {[%clk 0:01:52.2]} 20. Nc1 {[%clk 0:02:06.1]} 20... Nd7 {[%clk 0:01:51.7]}
21. Qc3 {[%clk 0:02:04]} 21... Rd8 {[%clk 0:01:49.4]} 22. Nd3 {[%clk 0:02:01.8]}
22... Bd6 {[%clk 0:01:49.3]} 23. Nh4 {[%clk 0:01:59.1]} 23... Bf8 {[%clk
0:01:41.2]} 24. Ng6 {[%clk 0:01:54.7]} 24... Bd6 {[%clk 0:01:39.7]} 25. Nh4
{[%clk 0:01:53.4]} 25... Bf8 {[%clk 0:01:39.4]} 26. Nf5 {[%clk 0:01:52.9]} 26...
Kh7 {[%clk 0:01:38.7]} 27. Ne3 {[%clk 0:01:50.8]} 27... Bd6 {[%clk 0:01:36.3]}
28. Nb2 {[%clk 0:01:47.2]} 28... Nb6 {[%clk 0:01:22.3]} 29. Bd3 {[%clk
0:01:46.1]} 29... c4 {[%clk 0:01:21.9]} 30. Nexc4 {[%clk 0:01:41.2]} 30... Bb4
{[%clk 0:01:21.1]} 31. Qxe5 {[%clk 0:01:40.8]} 31... Qxe5 {[%clk 0:01:21.3]} 32.
Nxe5 {[%clk 0:01:41.7]} 32... Bxe1 {[%clk 0:01:21.3]} 33. Rxe1 {[%clk
0:01:42.3]} 33... Kg8 {[%clk 0:01:19.4]} 34. Nbc4 {[%clk 0:01:39.9]} 34... Nxc4
{[%clk 0:01:18.9]} 35. Nxc4 {[%clk 0:01:40.8]} 35... Kf8 {[%clk 0:01:18.9]} 36.
e5 {[%clk 0:01:39]} 36... Bd7 {[%clk 0:01:17.8]} 37. Nb6 {[%clk 0:01:34.7]}
37... Ra7 {[%clk 0:01:16.7]} 38. f4 {[%clk 0:01:32.9]} 38... Rb7 {[%clk
0:01:08.7]} 39. Nc4 {[%clk 0:01:32.5]} 39... Ra7 {[%clk 0:01:08.8]} 40. f5
{[%clk 0:01:32.6]} 40... Bc8 {[%clk 0:01:06.4]} 41. Nd6 {[%clk 0:01:32.3]} 41...
Re7 {[%clk 0:01:06.2]} 42. Kf2 {[%clk 0:01:31]} 42... f6 {[%clk 0:01:03.2]} 43.
Nxc8 {[%clk 0:01:30]} 43... Rxc8 {[%clk 0:01:04.1]} 44. e6 {[%clk 0:01:30.4]}
44... Rd8 {[%clk 0:01:01.6]} 45. Be4 {[%clk 0:01:29.8]} 45... c5 {[%clk
0:00:58.6]} 46. Re3 {[%clk 0:01:29.4]} 46... Rc7 {[%clk 0:00:58.9]} 47. Bd3
{[%clk 0:01:27.7]} 47... Rd4 {[%clk 0:00:56.3]} 48. g4 {[%clk 0:01:21.6]} 48...
Ke7 {[%clk 0:00:56]} 49. Ke2 {[%clk 0:01:21.2]} 49... Rc6 {[%clk 0:00:52.5]} 50.
c3 {[%clk 0:01:20.5]} 50... Rd8 {[%clk 0:00:50.5]} 51. Bb5 {[%clk 0:01:20]}
51... Rcd6 {[%clk 0:00:50.5]} 52. Bd7 {[%clk 0:01:19.3]} 52... Rb8 {[%clk
0:00:48.4]} 53. Bb5 {[%clk 0:01:18.4]} 53... Rbd8 {[%clk 0:00:47.8]} 54. Bd3
{[%clk 0:01:18.2]} 54... Rb6 {[%clk 0:00:41.1]} 55. Bc4 {[%clk 0:01:17.2]} 55...
Rbd6 {[%clk 0:00:40.5]} 56. Bd3 {[%clk 0:01:04.3]} 56... Rd5 {[%clk 0:00:36.3]}
57. Kd2 {[%clk 0:00:56.4]} 57... h5 {[%clk 0:00:36.2]} 58. Kc2 {[%clk
0:00:52.8]} 58... h4 {[%clk 0:00:36.2]} 59. Kd2 {[%clk 0:00:49.1]} 59... Rb8
{[%clk 0:00:31.9]} 60. Kc2 {[%clk 0:00:49]} 60... Rbd8 {[%clk 0:00:31]} 61. Kd2
{[%clk 0:00:48.5]} 61... R5d6 {[%clk 0:00:28.4]} 62. Ke2 {[%clk 0:00:48.1]}
62... Rb6 {[%clk 0:00:24.2]} 63. Bb5 {[%clk 0:00:48.1]} 63... Rbd6 {[%clk
0:00:24.4]} 64. Bd3 {[%clk 0:00:47.9]} 64... Rd5 {[%clk 0:00:19]} 65. Kd2 {[%clk
0:00:45.4]} 1/2-1/2

[Event "*** Titled Tuesday Blitz"]
[Site "Chess.com"]
[Date "2021.02.09"]
[Round "11"]
[White "DenLaz"]
[Black "francyIM"]
[Result "1-0"]
[WhiteElo "2777"]
[BlackElo "2571"]
[TimeControl "180+1"]
[EndTime "12:08:02 PST"]
[Termination "DenLaz won by resignation"]

1. d4 {[%clk 0:03:00.9]} 1... Nf6 {[%clk 0:02:51.5]} 2. c4 {[%clk 0:03:00.9]}
2... d6 {[%clk 0:02:50.4]} 3. Nf3 {[%clk 0:02:59.9]} 3... Nbd7 {[%clk
0:02:50.1]} 4. g3 {[%clk 0:02:59.6]} 4... e5 {[%clk 0:02:50.3]} 5. Nc3 {[%clk
0:02:59.9]} 5... Be7 {[%clk 0:02:50.5]} 6. Bg2 {[%clk 0:02:59.9]} 6... O-O
{[%clk 0:02:50.8]} 7. O-O {[%clk 0:03:00.2]} 7... c6 {[%clk 0:02:51.4]} 8. e4
{[%clk 0:02:59.3]} 8... a6 {[%clk 0:02:47.8]} 9. h3 {[%clk 0:02:54.8]} 9... Qc7
{[%clk 0:02:47.4]} 10. Be3 {[%clk 0:02:53.3]} 10... b5 {[%clk 0:02:42]} 11. dxe5
{[%clk 0:02:52]} 11... dxe5 {[%clk 0:02:41.7]} 12. Qc2 {[%clk 0:02:51.3]} 12...
Bb7 {[%clk 0:02:40]} 13. a3 {[%clk 0:02:46.3]} 13... Bc5 {[%clk 0:02:37]} 14.
Bd2 {[%clk 0:02:32.4]} 14... Nb6 {[%clk 0:02:29.6]} 15. b4 {[%clk 0:02:25.1]}
15... Be7 {[%clk 0:02:21]} 16. c5 {[%clk 0:02:24]} 16... Nc4 {[%clk 0:02:21.1]}
17. Bc1 {[%clk 0:02:15.8]} 17... a5 {[%clk 0:02:20.4]} 18. Ra2 {[%clk
0:02:13.5]} 18... Bc8 {[%clk 0:02:16.6]} 19. Qb1 {[%clk 0:01:57.1]} 19... h6
{[%clk 0:01:57.6]} 20. Rd1 {[%clk 0:01:51.8]} 20... Be6 {[%clk 0:01:56.6]} 21.
Ra1 {[%clk 0:01:52.2]} 21... Rfd8 {[%clk 0:01:46.3]} 22. Nd2 {[%clk 0:01:49.3]}
22... Rd4 {[%clk 0:01:30.2]} 23. Nxc4 {[%clk 0:01:37.1]} 23... Rxc4 {[%clk
0:01:22.2]} 24. Bd2 {[%clk 0:01:13.1]} 24... axb4 {[%clk 0:01:20.4]} 25. axb4
{[%clk 0:01:14]} 25... Rd8 {[%clk 0:01:15.7]} 26. Qb2 {[%clk 0:01:06.6]} 26...
Rdd4 {[%clk 0:01:10]} 27. Ne2 {[%clk 0:00:57.6]} 27... Rd3 {[%clk 0:01:09.6]}
28. Bc3 {[%clk 0:00:52.8]} 28... Rxd1+ {[%clk 0:00:47.2]} 29. Rxd1 {[%clk
0:00:53.7]} 29... Nd7 {[%clk 0:00:43.5]} 30. Nc1 {[%clk 0:00:52.9]} 30... f6
{[%clk 0:00:31.9]} 31. Nb3 {[%clk 0:00:51.6]} 31... Nf8 {[%clk 0:00:15.8]} 32.
Na5 {[%clk 0:00:51.1]} 32... Rxc3 {[%clk 0:00:08.3]} 33. Qxc3 {[%clk 0:00:50.9]}
33... Nd7 {[%clk 0:00:08.7]} 34. h4 {[%clk 0:00:49.5]} 34... Nb8 {[%clk
0:00:08.3]} 35. Kh2 {[%clk 0:00:49.1]} 35... Qc8 {[%clk 0:00:08.7]} 36. Bf1
{[%clk 0:00:41.6]} 36... Na6 {[%clk 0:00:08.5]} 37. Bd3 {[%clk 0:00:41.5]} 37...
Qe8 {[%clk 0:00:07.9]} 38. Bc2 {[%clk 0:00:40.3]} 38... Kh7 {[%clk 0:00:08.3]}
39. Bb3 {[%clk 0:00:40.5]} 39... Bc8 {[%clk 0:00:08.6]} 40. Ba2 {[%clk
0:00:38.1]} 40... Nc7 {[%clk 0:00:07]} 41. Nb3 {[%clk 0:00:35.5]} 41... Ne6
{[%clk 0:00:06.2]} 42. Rd3 {[%clk 0:00:33]} 42... Qh5 {[%clk 0:00:06.2]} 43. Qd2
{[%clk 0:00:26.5]} 43... Qg4 {[%clk 0:00:06]} 44. Qe3 {[%clk 0:00:25.9]} 44...
Qh5 {[%clk 0:00:04.7]} 45. Qf3 {[%clk 0:00:25.7]} 45... Qg6 {[%clk 0:00:05.1]}
46. Qf5 {[%clk 0:00:25.6]} 46... Qxf5 {[%clk 0:00:05.6]} 47. exf5 {[%clk
0:00:26.5]} 47... Nc7 {[%clk 0:00:06.2]} 48. g4 {[%clk 0:00:26.9]} 48... h5
{[%clk 0:00:06.9]} 49. Na5 {[%clk 0:00:26.2]} 49... hxg4 {[%clk 0:00:07.8]} 50.
Nxc6 {[%clk 0:00:26.4]} 50... Bf8 {[%clk 0:00:08.1]} 51. Rd8 {[%clk 0:00:25.5]}
1-0

[Event "*** Titled Tuesday Blitz"]
[Site "Chess.com"]
[Date "2021.02.09"]
[Round "11"]
[White "CM_rui"]
[Black "GelmanAlexander"]
[Result "0-1"]
[WhiteElo "2385"]
[BlackElo "2613"]
[TimeControl "180+1"]
[EndTime "12:08:04 PST"]
[Termination "GelmanAlexander won by checkmate"]

1. e4 {[%clk 0:03:00.9]} 1... c5 {[%clk 0:03:00.1]} 2. Nf3 {[%clk 0:03:01.4]}
2... e6 {[%clk 0:03:00.4]} 3. c4 {[%clk 0:03:01.9]} 3... a6 {[%clk 0:03:00.2]}
4. d4 {[%clk 0:03:01.8]} 4... cxd4 {[%clk 0:03:00.4]} 5. Nxd4 {[%clk 0:03:02.7]}
5... b6 {[%clk 0:03:00.6]} 6. Nc3 {[%clk 0:03:02.4]} 6... Bb7 {[%clk 0:03:00.9]}
7. Be3 {[%clk 0:03:02.4]} 7... d6 {[%clk 0:02:59.7]} 8. Be2 {[%clk 0:03:02.3]}
8... Nf6 {[%clk 0:02:59.8]} 9. f3 {[%clk 0:03:00.7]} 9... Nbd7 {[%clk
0:03:00.1]} 10. O-O {[%clk 0:03:00.3]} 10... Rc8 {[%clk 0:03:00.3]} 11. Rc1
{[%clk 0:03:00.4]} 11... Rg8 {[%clk 0:02:59.7]} 12. Qd2 {[%clk 0:02:59.6]} 12...
h6 {[%clk 0:02:59.6]} 13. b4 {[%clk 0:02:49.8]} 13... g5 {[%clk 0:02:59.6]} 14.
h3 {[%clk 0:02:41.9]} 14... Ne5 {[%clk 0:02:57.1]} 15. Na4 {[%clk 0:02:36.7]}
15... Nfd7 {[%clk 0:02:57.4]} 16. f4 {[%clk 0:01:50]} 16... gxf4 {[%clk
0:02:55.6]} 17. Rxf4 {[%clk 0:01:39.9]} 17... Rg5 {[%clk 0:01:45]} 18. Rcf1
{[%clk 0:01:26.3]} 18... Qe7 {[%clk 0:01:28.8]} 19. Nb3 {[%clk 0:00:50.3]} 19...
f5 {[%clk 0:01:00.7]} 20. R4f2 {[%clk 0:00:21.8]} 20... Bxe4 {[%clk 0:00:53.5]}
21. Bxg5 {[%clk 0:00:20.7]} 21... hxg5 {[%clk 0:00:53.6]} 22. Bh5+ {[%clk
0:00:20.6]} 22... Kd8 {[%clk 0:00:53.7]} 23. Nd4 {[%clk 0:00:18]} 23... Rxc4
{[%clk 0:00:48.6]} 24. Rc1 {[%clk 0:00:15]} 24... Bg7 {[%clk 0:00:42.3]} 25.
Rxc4 {[%clk 0:00:13.3]} 25... Nxc4 {[%clk 0:00:43.2]} 26. Qc3 {[%clk 0:00:10]}
26... b5 {[%clk 0:00:39.8]} 27. Nb2 {[%clk 0:00:07.5]} 27... Qf6 {[%clk
0:00:35.9]} 28. Nxe6+ {[%clk 0:00:05.2]} 28... Ke7 {[%clk 0:00:21.9]} 29. Qxf6+
{[%clk 0:00:02.2]} 29... Bxf6 {[%clk 0:00:22.8]} 30. Nxc4 {[%clk 0:00:02.4]}
30... bxc4 {[%clk 0:00:23.1]} 31. Nc7 {[%clk 0:00:02.2]} 31... c3 {[%clk
0:00:21.6]} 32. Bd1 {[%clk 0:00:02.5]} 32... Bd4 {[%clk 0:00:18.8]} 33. Kf1
{[%clk 0:00:03]} 33... Bxf2 {[%clk 0:00:18.5]} 34. Kxf2 {[%clk 0:00:03.9]} 34...
Bd3 {[%clk 0:00:17.5]} 35. Nxa6 {[%clk 0:00:03.8]} 35... Bxa6 {[%clk 0:00:16.1]}
36. Bc2 {[%clk 0:00:04.5]} 36... Ke6 {[%clk 0:00:15.5]} 37. a4 {[%clk
0:00:04.6]} 37... Bc4 {[%clk 0:00:15]} 38. b5 {[%clk 0:00:03.7]} 38... Nc5
{[%clk 0:00:14.5]} 39. Ke3 {[%clk 0:00:03.5]} 39... Ke5 {[%clk 0:00:14.5]} 40.
g4 {[%clk 0:00:03.1]} 40... d5 {[%clk 0:00:14.7]} 41. gxf5 {[%clk 0:00:03]}
41... d4+ {[%clk 0:00:15.3]} 42. Kf2 {[%clk 0:00:03.3]} 42... d3 {[%clk
0:00:15.9]} 43. Bd1 {[%clk 0:00:03.2]} 43... c2 {[%clk 0:00:16.1]} 44. Bxc2
{[%clk 0:00:03.6]} 44... dxc2 {[%clk 0:00:16.4]} 45. Kg3 {[%clk 0:00:04.5]}
45... c1=Q {[%clk 0:00:16.9]} 46. Kg4 {[%clk 0:00:05.4]} 46... Qf4+ {[%clk
0:00:17.4]} 47. Kh5 {[%clk 0:00:05.2]} 47... Qxf5 {[%clk 0:00:18.3]} 48. b6
{[%clk 0:00:04]} 48... Kf6 {[%clk 0:00:18.9]} 49. h4 {[%clk 0:00:03.2]} 49...
Be2+ {[%clk 0:00:16.7]} 50. Kh6 {[%clk 0:00:02.7]} 50... Qg6# {[%clk 0:00:17.6]}
0-1

[Event "*** Titled Tuesday Blitz"]
[Site "Chess.com"]
[Date "2021.02.09"]
[Round "11"]
[White "theultimatehunter"]
[Black "Loy_Konstantin"]
[Result "0-1"]
[WhiteElo "2254"]
[BlackElo "2385"]
[TimeControl "180+1"]
[EndTime "12:08:07 PST"]
[Termination "Loy_Konstantin won by resignation"]

1. d4 {[%clk 0:03:00.9]} 1... Nf6 {[%clk 0:02:59.6]} 2. c4 {[%clk 0:03:01.4]}
2... c5 {[%clk 0:02:58.7]} 3. d5 {[%clk 0:03:01.4]} 3... b5 {[%clk 0:02:58.8]}
4. cxb5 {[%clk 0:03:02.3]} 4... a6 {[%clk 0:02:59]} 5. b6 {[%clk 0:03:02.6]}
5... Qxb6 {[%clk 0:02:58.3]} 6. Nc3 {[%clk 0:03:03.1]} 6... d6 {[%clk
0:02:58.6]} 7. e4 {[%clk 0:03:03.6]} 7... g6 {[%clk 0:02:58.7]} 8. Nf3 {[%clk
0:03:02.9]} 8... Bg4 {[%clk 0:02:58.6]} 9. Be2 {[%clk 0:03:01.7]} 9... Bxf3
{[%clk 0:02:58.8]} 10. Bxf3 {[%clk 0:03:01.8]} 10... Bg7 {[%clk 0:02:59.3]} 11.
O-O {[%clk 0:03:01.9]} 11... O-O {[%clk 0:02:59.8]} 12. Qc2 {[%clk 0:02:48]}
12... Nbd7 {[%clk 0:02:59.7]} 13. Bf4 {[%clk 0:02:47.9]} 13... Ne8 {[%clk
0:02:54.8]} 14. Rfe1 {[%clk 0:02:38.6]} 14... Nc7 {[%clk 0:02:53.2]} 15. Bg3
{[%clk 0:02:30]} 15... Nb5 {[%clk 0:02:51]} 16. Na4 {[%clk 0:02:25.6]} 16... Qb7
{[%clk 0:02:41.2]} 17. Rab1 {[%clk 0:02:15.1]} 17... Nd4 {[%clk 0:02:39.8]} 18.
Qd1 {[%clk 0:02:15.7]} 18... Rab8 {[%clk 0:02:33.9]} 19. Be2 {[%clk 0:02:15]}
19... Nb6 {[%clk 0:02:20.8]} 20. Nc3 {[%clk 0:02:10.9]} 20... Nd7 {[%clk
0:02:16.2]} 21. Bf1 {[%clk 0:02:08.8]} 21... Qb6 {[%clk 0:01:48.5]} 22. Bh4
{[%clk 0:02:03.2]} 22... Rfe8 {[%clk 0:01:45.5]} 23. Qa4 {[%clk 0:01:58.8]}
23... Nb5 {[%clk 0:01:34.9]} 24. Ne2 {[%clk 0:01:45.5]} 24... Qb7 {[%clk
0:01:26]} 25. b4 {[%clk 0:01:33.5]} 25... cxb4 {[%clk 0:01:07.9]} 26. Qxb4
{[%clk 0:01:28.3]} 26... Qa7 {[%clk 0:01:02.5]} 27. Rec1 {[%clk 0:01:17.6]}
27... Nc3 {[%clk 0:00:47.7]} 28. Nxc3 {[%clk 0:00:54.5]} 28... Rxb4 {[%clk
0:00:46.3]} 29. Rxb4 {[%clk 0:00:55.4]} 29... Rc8 {[%clk 0:00:42.4]} 30. Rb3
{[%clk 0:00:44.9]} 30... Bxc3 {[%clk 0:00:27.4]} 31. Rbxc3 {[%clk 0:00:43.6]}
31... Rxc3 {[%clk 0:00:28.3]} 32. Rxc3 {[%clk 0:00:44.2]} 32... f6 {[%clk
0:00:28.4]} 33. Rc6 {[%clk 0:00:38.5]} 33... Nc5 {[%clk 0:00:25.3]} 34. Bg3
{[%clk 0:00:31.1]} 34... Qb7 {[%clk 0:00:24.4]} 35. h4 {[%clk 0:00:30.3]} 35...
h5 {[%clk 0:00:23.5]} 36. Bf4 {[%clk 0:00:30.2]} 36... Qb2 {[%clk 0:00:20.2]}
37. Be3 {[%clk 0:00:30.2]} 37... Qxa2 {[%clk 0:00:18.1]} 38. Bxc5 {[%clk
0:00:28]} 38... dxc5 {[%clk 0:00:19]} 39. Rxc5 {[%clk 0:00:28.9]} 39... a5
{[%clk 0:00:19.2]} 40. Rc8+ {[%clk 0:00:28.9]} 40... Kg7 {[%clk 0:00:17.1]} 41.
Rc7 {[%clk 0:00:28.6]} 41... Qa3 {[%clk 0:00:17.2]} 42. Ra7 {[%clk 0:00:27.8]}
42... Qb4 {[%clk 0:00:16.6]} 43. Kh2 {[%clk 0:00:26.8]} 43... a4 {[%clk
0:00:16.4]} 44. g3 {[%clk 0:00:20.6]} 44... a3 {[%clk 0:00:16.6]} 45. d6 {[%clk
0:00:20.7]} 45... Qxd6 {[%clk 0:00:16]} 46. e5 {[%clk 0:00:19.2]} 46... fxe5
{[%clk 0:00:15.8]} 47. Bc4 {[%clk 0:00:19.1]} 47... Kf6 {[%clk 0:00:15.5]} 48.
Kg2 {[%clk 0:00:19.2]} 48... Qd2 {[%clk 0:00:14.3]} 49. Ra6+ {[%clk 0:00:18.5]}
49... Kg7 {[%clk 0:00:13.5]} 50. Ra8 {[%clk 0:00:17.8]} 50... Qd4 {[%clk
0:00:11.3]} 51. Ra4 {[%clk 0:00:16.8]} 51... Qc5 {[%clk 0:00:10.8]} 52. Kg1
{[%clk 0:00:16.6]} 52... e4 {[%clk 0:00:10.4]} 53. Be6 {[%clk 0:00:15.9]} 53...
e3 {[%clk 0:00:09.8]} 54. fxe3 {[%clk 0:00:15.6]} 54... Qxe3+ {[%clk 0:00:09.7]}
0-1

[Event "*** Titled Tuesday Blitz"]
[Site "Chess.com"]
[Date "2021.02.09"]
[Round "11"]
[White "hypert"]
[Black "jacky72"]
[Result "0-1"]
[WhiteElo "2509"]
[BlackElo "2694"]
[TimeControl "180+1"]
[EndTime "12:08:08 PST"]
[Termination "jacky72 won by resignation"]

1. e4 {[%clk 0:03:00.9]} 1... a6 {[%clk 0:03:00.9]} 2. Nc3 {[%clk 0:03:01.8]}
2... e5 {[%clk 0:03:00.1]} 3. Nf3 {[%clk 0:03:00.6]} 3... Nc6 {[%clk 0:03:00]}
4. d4 {[%clk 0:03:01]} 4... exd4 {[%clk 0:03:00.9]} 5. Nxd4 {[%clk 0:03:01]}
5... Bb4 {[%clk 0:03:01.5]} 6. Nxc6 {[%clk 0:03:00.6]} 6... bxc6 {[%clk
0:03:01.2]} 7. Bd3 {[%clk 0:03:01.2]} 7... d6 {[%clk 0:03:00.3]} 8. O-O {[%clk
0:03:00.8]} 8... Bxc3 {[%clk 0:03:00.7]} 9. bxc3 {[%clk 0:03:00.2]} 9... Ne7
{[%clk 0:03:01.4]} 10. f4 {[%clk 0:03:00.1]} 10... O-O {[%clk 0:02:59.3]} 11. f5
{[%clk 0:03:00.2]} 11... f6 {[%clk 0:02:59.7]} 12. c4 {[%clk 0:02:59.2]} 12...
c5 {[%clk 0:02:59.6]} 13. Rf3 {[%clk 0:02:57.1]} 13... Nc6 {[%clk 0:02:37.4]}
14. Rh3 {[%clk 0:02:56]} 14... Qe8 {[%clk 0:02:37.9]} 15. Qg4 {[%clk 0:02:49.5]}
15... Rb8 {[%clk 0:02:12.7]} 16. Qh4 {[%clk 0:02:43.8]} 16... Qe5 {[%clk
0:02:12.8]} 17. Qxh7+ {[%clk 0:02:34.5]} 17... Kf7 {[%clk 0:02:13.2]} 18. Qg6+
{[%clk 0:02:34]} 18... Ke7 {[%clk 0:02:13.5]} 19. Rh7 {[%clk 0:02:19.5]} 19...
Rf7 {[%clk 0:02:06.2]} 20. Rxg7 {[%clk 0:02:17.6]} 20... Nd8 {[%clk 0:02:06.7]}
21. Bg5 {[%clk 0:01:34.5]} 21... Qxa1+ {[%clk 0:02:04.3]} 22. Kf2 {[%clk
0:01:34.5]} 22... fxg5 {[%clk 0:01:52.1]} 23. Rg8 {[%clk 0:01:06.1]} 23... Qd4+
{[%clk 0:01:45.3]} 24. Ke2 {[%clk 0:01:05.4]} 24... Nc6 {[%clk 0:01:20]} 25.
Rxc8 {[%clk 0:00:56.3]} 25... Rxc8 {[%clk 0:01:17.4]} 26. Qe6+ {[%clk
0:00:55.9]} 26... Kf8 {[%clk 0:01:15.2]} 27. Qxc8+ {[%clk 0:00:55.1]} 27... Kg7
{[%clk 0:01:15.8]} 28. Qe6 {[%clk 0:00:44.3]} 28... Qf6 {[%clk 0:01:11.4]} 29.
Qe8 {[%clk 0:00:39.5]} 29... Nd4+ {[%clk 0:01:06.7]} 30. Kd1 {[%clk 0:00:37]}
30... Nxf5 {[%clk 0:00:57.5]} 31. exf5 {[%clk 0:00:32.2]} 31... Re7 {[%clk
0:00:56.2]} 32. Qg6+ {[%clk 0:00:28.6]} 32... Qxg6 {[%clk 0:00:55.2]} 33. fxg6
{[%clk 0:00:29.5]} 33... g4 {[%clk 0:00:48.8]} 34. Bf5 {[%clk 0:00:27.8]} 34...
g3 {[%clk 0:00:45.9]} 35. hxg3 {[%clk 0:00:27.1]} 35... Re3 {[%clk 0:00:46]} 36.
g4 {[%clk 0:00:22.3]} 36... Ra3 {[%clk 0:00:46]} 37. Kc1 {[%clk 0:00:21.7]}
37... Rxa2 {[%clk 0:00:45.9]} 38. Kb1 {[%clk 0:00:19.9]} 38... Ra4 {[%clk
0:00:44.4]} 39. Bd3 {[%clk 0:00:19.6]} 39... Rb4+ {[%clk 0:00:43.6]} 40. Ka2
{[%clk 0:00:18]} 40... a5 {[%clk 0:00:44.5]} 41. Ka3 {[%clk 0:00:17.8]} 41...
Kf6 {[%clk 0:00:41.8]} 42. c3 {[%clk 0:00:16.2]} 42... Rb8 {[%clk 0:00:37]} 43.
Ka4 {[%clk 0:00:16.3]} 43... Kg5 {[%clk 0:00:33.7]} 44. Bf5 {[%clk 0:00:14.5]}
44... Kf6 {[%clk 0:00:30.8]} 45. Kxa5 {[%clk 0:00:14.4]} 45... c6 {[%clk
0:00:31.4]} 46. Ka6 {[%clk 0:00:13.9]} 46... d5 {[%clk 0:00:31.3]} 47. Ka7
{[%clk 0:00:13.3]} 47... Rb3 {[%clk 0:00:29.5]} 48. g5+ {[%clk 0:00:07.7]} 48...
Kg7 {[%clk 0:00:28.5]} 49. cxd5 {[%clk 0:00:07.2]} 49... cxd5 {[%clk 0:00:29]}
50. Be6 {[%clk 0:00:07.5]} 50... Ra3+ {[%clk 0:00:27.5]} 51. Kb6 {[%clk
0:00:06.8]} 51... d4 {[%clk 0:00:28.4]} 52. cxd4 {[%clk 0:00:06]} 52... cxd4
{[%clk 0:00:29.3]} 53. Kc5 {[%clk 0:00:05]} 53... d3 {[%clk 0:00:29.3]} 54. Kc4
{[%clk 0:00:04.6]} 54... d2 {[%clk 0:00:28.7]} 55. Bg4 {[%clk 0:00:05]} 55...
Ra4+ {[%clk 0:00:28.6]} 56. Kc3 {[%clk 0:00:04.7]} 56... Rxg4 {[%clk 0:00:29.5]}
57. Kxd2 {[%clk 0:00:05.2]} 57... Rxg2+ {[%clk 0:00:29.8]} 0-1

[Event "*** Titled Tuesday Blitz"]
[Site "Chess.com"]
[Date "2021.02.09"]
[Round "11"]
[White "politeplayer"]
[Black "TeukkaSalama"]
[Result "0-1"]
[WhiteElo "2209"]
[BlackElo "2382"]
[TimeControl "180+1"]
[EndTime "12:08:08 PST"]
[Termination "TeukkaSalama won on time"]

1. f4 {[%clk 0:02:51.1]} 1... d5 {[%clk 0:02:59]} 2. Nf3 {[%clk 0:02:49.5]} 2...
Nf6 {[%clk 0:02:59.1]} 3. e3 {[%clk 0:02:49.7]} 3... c6 {[%clk 0:02:58.9]} 4. d4
{[%clk 0:02:49.3]} 4... Bg4 {[%clk 0:02:59.2]} 5. Bd3 {[%clk 0:02:48.2]} 5... g6
{[%clk 0:02:55.7]} 6. Nbd2 {[%clk 0:02:47.3]} 6... Bg7 {[%clk 0:02:55]} 7. h3
{[%clk 0:02:45.1]} 7... Bxf3 {[%clk 0:02:52.9]} 8. Qxf3 {[%clk 0:02:44.4]} 8...
Nbd7 {[%clk 0:02:51.4]} 9. g4 {[%clk 0:02:42.3]} 9... a5 {[%clk 0:02:44]} 10. a4
{[%clk 0:02:41.4]} 10... Qb6 {[%clk 0:02:39.5]} 11. b3 {[%clk 0:02:40.6]} 11...
e6 {[%clk 0:02:28.4]} 12. Bb2 {[%clk 0:02:38.7]} 12... Nb8 {[%clk 0:02:21.4]}
13. f5 {[%clk 0:02:25.1]} 13... Qc7 {[%clk 0:02:02.4]} 14. g5 {[%clk 0:02:20.9]}
14... Nh5 {[%clk 0:02:00.6]} 15. f6 {[%clk 0:02:15.3]} 15... Bf8 {[%clk
0:02:00]} 16. O-O-O {[%clk 0:02:12.6]} 16... b5 {[%clk 0:01:53.2]} 17. e4 {[%clk
0:02:10.2]} 17... bxa4 {[%clk 0:01:50.3]} 18. exd5 {[%clk 0:02:01.4]} 18... cxd5
{[%clk 0:01:47.5]} 19. Bb5+ {[%clk 0:02:00.4]} 19... Nc6 {[%clk 0:01:39.8]} 20.
Nc4 {[%clk 0:01:48.3]} 20... O-O-O {[%clk 0:01:16.7]} 21. Bxc6 {[%clk
0:01:08.1]} 21... Qxc6 {[%clk 0:01:06.8]} 22. Ne5 {[%clk 0:01:07]} 22... Qc7
{[%clk 0:01:02.8]} 23. Qc3 {[%clk 0:01:06.4]} 23... Qxc3 {[%clk 0:00:30.6]} 24.
Bxc3 {[%clk 0:01:06]} 24... Ba3+ {[%clk 0:00:31.3]} 25. Kd2 {[%clk 0:01:00.1]}
25... Rhf8 {[%clk 0:00:24.1]} 26. bxa4 {[%clk 0:00:55.9]} 26... Bd6 {[%clk
0:00:20.2]} 27. Bxa5 {[%clk 0:00:54.4]} 27... Bxe5 {[%clk 0:00:20.5]} 28. Bxd8
{[%clk 0:00:53.2]} 28... Bf4+ {[%clk 0:00:20.8]} 29. Kd3 {[%clk 0:00:53.1]}
29... Rxd8 {[%clk 0:00:18.2]} 30. h4 {[%clk 0:00:51]} 30... Rd7 {[%clk
0:00:18.2]} 31. Rb1 {[%clk 0:00:49.1]} 31... Ra7 {[%clk 0:00:17.2]} 32. Rb4
{[%clk 0:00:47.2]} 32... Bg3 {[%clk 0:00:16.8]} 33. Rhb1 {[%clk 0:00:44.5]}
33... Bxh4 {[%clk 0:00:15.1]} 34. Rb8+ {[%clk 0:00:43.7]} 34... Kc7 {[%clk
0:00:15.5]} 35. a5 {[%clk 0:00:40.4]} 35... Bxg5 {[%clk 0:00:15.1]} 36. a6
{[%clk 0:00:39.6]} 36... Nf4+ {[%clk 0:00:13.7]} 37. Kc3 {[%clk 0:00:34.7]}
37... Bxf6 {[%clk 0:00:13.8]} 38. R1b7+ {[%clk 0:00:31.1]} 38... Rxb7 {[%clk
0:00:12.8]} 39. Rxb7+ {[%clk 0:00:29.8]} 39... Kc6 {[%clk 0:00:11]} 40. Rb4
{[%clk 0:00:22.8]} 40... Ne2+ {[%clk 0:00:10.6]} 41. Kd3 {[%clk 0:00:20.1]}
41... Nf4+ {[%clk 0:00:04.3]} 42. Ke3 {[%clk 0:00:11.8]} 42... Ng2+ {[%clk
0:00:04.3]} 43. Kf2 {[%clk 0:00:06.1]} 43... Nh4 {[%clk 0:00:02.2]} 0-1